bitfinex/quotes_ETHUSD_20250413
["timestamp","ask_amount","ask_price","bid_price","bid_amount"]
[1744549110043,0.14387735,1602.3,1601.9,7.11597]
[1744549110255,0.2515,1602.4,1601.9,0.8734]
[1744549110457,0.14316735,1602.2,1601.9,0.8734]
[1744549110656,3.0,1602.2,1601.9,0.8734]
[1744549110965,0.14316735,1602.1,1601.9,0.8734]
[1744549111291,3.0,1602.2,1601.9,0.8734]
[1744549111589,0.14316735,1602.0,1601.7,7.11668]
[1744549111795,0.2515,1602.1,1601.7,0.8734]
[1744549111954,0.14316735,1601.9,1601.7,0.8734]
[1744549112149,0.2515,1602.1,1601.7,0.8734]
[1744549112351,0.14316735,1601.8,1601.7,0.8734]
[1744549112550,0.2515,1602.1,1601.7,0.8734]
[1744549112759,0.14316735,1601.8,1601.7,7.11676]
[1744549112998,0.2515,1602.1,1601.7,7.11676]
[1744549113170,0.14316735,1601.8,1601.7,7.11676]
[1744549113356,0.2515,1602.1,1601.7,7.11676]
[1744549113560,0.14316735,1601.8,1601.7,7.11676]
[1744549114277,0.2515,1602.1,1601.7,7.11676]
[1744549114476,0.14316735,1601.8,1601.7,7.11676]
[1744549114703,0.2515,1602.1,1601.7,7.11676]
[1744549114868,0.14316735,1601.8,1601.7,7.11676]
[1744549115071,0.2515,1602.1,1601.7,7.11676]
[1744549115390,0.14316735,1601.8,1601.7,0.8734]
[1744549115870,0.2515,1602.1,1601.7,0.8734]
[1744549116209,0.14316735,1601.8,1601.6,7.08119]
[1744549116424,0.2515,1602.1,1601.6,7.08119]
[1744549116768,0.14316735,1601.7,1601.6,7.08119]
[1744549117115,9.11,1602.2,1601.9,0.8826]
[1744549117407,9.11,1602.2,1601.9,7.12503]
[1744549119138,9.11,1602.2,1601.8,6.24293]
[1744549119139,0.2515,1602.1,1601.5,7.12662]
[1744549119297,0.2515,1602.1,1601.6,6.24362]
[1744549119633,0.2515,1602.1,1601.6,12.48724]
[1744549120833,0.2515,1602.1,1601.6,6.24362]
[1744549121039,0.2515,1602.1,1601.6,12.48725]
[1744549121231,0.2515,1602.1,1601.6,6.24362]
[1744549121528,3.0,1602.0,1601.5,7.12667]
[1744549122495,3.0,1602.0,1601.5,13.37066]
[1744549122906,3.0,1602.0,1601.6,6.24373]
[1744549123533,3.0,1602.0,1601.6,6.24373]
[1744549124151,3.0,1602.0,1601.5,8.463656]
[1744549124538,3.0,1602.0,1601.5,7.12659]
[1744549124738,3.0,1602.0,1601.5,13.37059]
[1744549124941,3.0,1602.0,1601.5,7.12659]
[1744549126240,3.0,1602.0,1601.6,6.24373]
[1744549126454,3.0,1602.0,1601.6,12.48737]
[1744549126637,3.0,1602.0,1601.7,6.24318]
[1744549126948,3.0,1602.0,1601.6,6.24375]
[1744549127143,3.0,1602.0,1601.5,7.12663]
[1744549127335,0.13085655,1601.9,1601.5,7.12663]
[1744549127535,0.38795655,1601.9,1601.5,7.12663]
[1744549127772,0.38795655,1601.9,1601.5,13.37062]
[1744549128058,0.38795655,1601.9,1601.5,7.12659]
[1744549129854,0.38795655,1601.9,1601.3,0.8465]
[1744549130057,0.2571,1601.7,1601.2,13.33687]
[1744549130269,0.13002765,1601.6,1601.2,13.33687]
[1744549130434,0.2571,1601.7,1601.2,13.33687]
[1744549130762,0.13002765,1601.6,1601.2,13.33687]
[1744549131164,0.2571,1601.7,1601.2,13.33687]
[1744549131362,0.13002765,1601.5,1601.2,13.33687]
[1744549131564,0.2571,1601.7,1601.2,13.33687]
[1744549131773,0.13002765,1601.4,1601.2,13.33687]
[1744549131941,0.2571,1601.7,1601.2,13.33687]
[1744549132143,0.13002765,1601.3,1601.2,13.33687]
[1744549132343,0.2571,1601.7,1601.2,8.427417]
[1744549132560,0.2571,1601.7,1601.4,12.4885]
[1744549133980,0.2571,1601.7,1601.3,6.24488]
[1744549134280,0.2571,1601.7,1601.3,6.24479]
[1744549137495,0.2571,1601.7,1601.3,12.48955]
[1744549137672,0.2571,1601.7,1601.4,12.48884]
[1744549138260,0.2571,1601.7,1601.2,0.8465]
[1744549138460,0.2571,1601.7,1601.3,6.24485]
[1744549139395,0.2571,1601.7,1601.3,12.48965]
[1744549139691,0.2571,1601.7,1601.3,6.2448]
[1744549140091,0.2571,1601.7,1601.4,6.24448]
[1744549140471,0.2571,1601.7,1601.4,12.48889]
[1744549140695,0.2571,1601.7,1601.4,6.24441]
[1744549142173,0.2571,1601.7,1601.4,12.48882]
[1744549142369,0.13002765,1601.6,1601.4,6.24441]
[1744549142808,0.13002765,1601.6,1601.3,12.48966]
[1744549143019,0.2571,1601.7,1601.2,7.0917]
[1744549143201,0.13002765,1601.5,1601.2,13.33689]
[1744549143377,0.2571,1601.7,1601.2,13.33689]
[1744549143902,0.13002765,1601.6,1601.1,7.10807]
[1744549144311,3.13002765,1601.6,1601.1,7.10807]
[1744549144514,3.13002765,1601.6,1601.1,13.35364]
[1744549144690,0.2571,1601.5,1601.1,13.35364]
[1744549144898,0.12434272,1601.4,1601.1,13.35364]
[1744549145075,0.12434272,1601.4,1601.1,0.8625]
[1744549145282,0.12434272,1601.4,1601.1,0.02]
[1744549147404,0.2571,1601.3,1601.1,0.02]
[1744549147715,3.38108735,1601.2,1601.1,0.02]
[1744549152728,9.62639735,1601.2,1601.1,0.02]
[1744549152934,3.2571,1601.2,1601.1,0.02]
[1744549155126,3.0,1601.2,1601.1,0.02]
[1744549155326,0.2572,1601.3,1601.1,0.02]
[1744549155327,6.6252,1601.3,1601.1,0.02]
[1744549155920,6.368,1601.3,1601.1,0.02]
[1744549157535,6.368,1601.3,1601.1,0.9345]
[1744549157744,6.6252,1601.6,1601.2,6.24515]
[1744549158157,3.0,1601.5,1601.2,6.24515]
[1744549158861,3.0,1601.5,1601.1,7.806707]
[1744549159523,3.0,1601.5,1601.1,1.561107]
[1744549159865,3.0,1601.7,1601.4,7.15901]
[1744549160420,3.0,1601.7,1601.4,0.9145]
[1744549161357,6.11,1601.8,1601.4,7.15897]
[1744549162042,6.11,1601.8,1601.5,6.24413]
[1744549162636,6.11,1601.8,1601.4,13.40335]
[1744549163178,6.11,1601.8,1601.4,7.15888]
[1744549163874,9.3672,1601.9,1601.4,7.15888]
[1744549164085,3.0,1601.8,1601.4,7.15888]
[1744549164684,3.0,1601.8,1601.4,7.15885]
[1744549164882,3.0,1601.8,1601.6,6.2437]
[1744549165268,3.0,1601.8,1601.5,6.244]
[1744549165483,3.0,1601.8,1601.5,12.48798]
[1744549165681,3.0,1601.8,1601.6,12.48744]
[1744549165994,3.0,1601.8,1601.6,7.14072]
[1744549166487,6.11,1601.9,1601.6,7.14072]
[1744549167294,6.11,1601.9,1601.6,13.3843]
[1744549167490,6.11,1601.9,1601.7,6.24333]
[1744549168176,0.1173553,1601.8,1601.6,7.14058]
[1744549168375,6.11,1601.9,1601.6,7.14058]
[1744549168557,0.12742697,1601.8,1601.6,7.14058]
[1744549168757,6.11,1601.9,1601.6,7.14058]
[1744549168958,0.12742697,1601.8,1601.6,7.14058]
[1744549169158,6.11,1601.9,1601.6,7.14058]
[1744549169397,0.12742697,1601.8,1601.6,13.38417]
[1744549169601,0.12742697,1601.8,1601.7,6.24336]
[1744549169785,6.11,1601.9,1601.7,12.48672]
[1744549169986,0.12742697,1601.8,1601.7,12.48672]
[1744549170283,12.7282,1602.2,1601.8,6.24266]
[1744549170509,3.0,1602.1,1601.8,12.48549]
[1744549172425,0.12742697,1602.0,1601.8,12.48549]
[1744549172788,0.12742697,1602.0,1601.7,6.24329]
[1744549172987,0.12742697,1602.0,1601.7,12.48652]
[1744549173182,0.12742697,1602.0,1601.7,6.24323]
[1744549173627,0.12742697,1602.0,1601.9,6.24258]
[1744549173783,0.12742697,1602.0,1601.9,7.11498]
[1744549176123,6.361,1602.2,1602.0,6.24192]
[1744549176489,3.0,1602.4,1602.0,12.48386]
[1744549178950,0.2572,1602.3,1601.9,13.35735]
[1744549179304,0.2572,1602.3,1601.9,7.11486]
[1744549179503,0.2572,1602.3,1601.9,13.35728]
[1744549181403,0.2572,1602.3,1602.0,6.24214]
[1744549181843,3.0,1602.4,1602.0,6.24214]
[1744549182011,3.0,1602.4,1602.1,6.24164]
[1744549183536,3.0,1602.4,1602.1,7.13994]
[1744549183737,3.0,1602.4,1602.1,13.38162]
[1744549184949,3.0,1602.4,1602.1,7.13994]
[1744549187440,0.13536033,1602.3,1602.1,7.13994]
[1744549187748,3.0,1602.4,1602.1,13.38159]
[1744549187914,0.13536033,1602.3,1602.1,13.38159]
[1744549188116,3.0,1602.4,1602.1,13.38159]
[1744549188317,0.13536033,1602.3,1602.1,13.38159]
[1744549188544,3.0,1602.4,1602.2,6.24125]
[1744549188744,0.13536033,1602.3,1602.2,6.24125]
[1744549189052,3.0,1602.4,1602.2,12.48255]
[1744549189253,0.13725443,1602.3,1602.2,12.48255]
[1744549189624,3.0,1602.4,1602.2,12.48255]
[1744549189954,0.13725443,1602.3,1602.2,12.48255]
[1744549190259,6.11,1602.5,1602.3,6.24085]
[1744549191419,6.11,1602.5,1602.2,6.24127]
[1744549191726,6.11,1602.5,1602.2,12.48254]
[1744549192622,6.11,1602.5,1602.3,6.24079]
[1744549193332,3.0,1602.5,1602.3,6.24079]
[1744549195229,3.0,1602.5,1602.2,12.48268]
[1744549196173,3.0,1602.5,1602.2,6.24134]
[1744549197270,3.0,1602.5,1602.2,12.48264]
[1744549197939,3.0,1602.5,1602.3,6.24081]
[1744549198440,3.0,1602.5,1602.2,6.24135]
[1744549198643,3.0,1602.5,1602.2,12.4827]
[1744549199071,3.0,1602.5,1602.2,6.24135]
[1744549199242,3.0,1602.5,1602.2,12.48263]
[1744549201688,3.0,1602.5,1602.3,6.24088]
[1744549203088,3.0,1602.5,1602.2,12.48264]
[1744549203385,3.0,1602.5,1602.2,6.2413]
[1744549203694,3.0,1602.5,1602.3,6.24101]
[1744549203990,3.0,1602.5,1602.3,12.4819]
[1744549204192,6.11,1602.6,1602.5,6.24024]
[1744549204356,6.11,1602.9,1602.4,6.24054]
[1744549204561,6.11,1603.0,1602.7,7.12628]
[1744549204761,6.3674,1603.0,1602.6,6.2397]
[1744549205494,6.3674,1603.0,1602.6,12.47939]
[1744549206213,3.0,1602.9,1602.5,0.8869]
[1744549206361,3.0,1602.7,1602.3,6.24091]
[1744549206563,3.0,1602.7,1602.3,12.48177]
[1744549207596,3.0,1602.7,1602.4,6.24063]
[1744549207795,3.0,1602.7,1602.4,6.24047]
[1744549209604,3.0,1602.7,1602.4,12.48098]
[1744549209919,3.0,1602.7,1602.5,6.24023]
[1744549210822,3.0,1602.7,1602.4,7.13217]
[1744549211025,0.2574,1602.6,1602.2,7.13298]
[1744549211940,0.2574,1602.6,1602.3,6.24099]
[1744549213027,3.0,1602.7,1602.5,6.24024]
[1744549214533,3.0,1602.7,1602.4,6.24046]
[1744549216222,3.0,1602.7,1602.4,12.48093]
[1744549217045,6.24029,1602.5,1602.1,0.8358]
[1744549217202,6.11,1602.5,1602.2,6.24109]
[1744549217400,9.11,1602.5,1602.4,6.24063]
[1744549218111,3.0,1602.9,1602.7,6.23934]
[1744549218616,3.0,1602.9,1602.6,6.23986]
[1744549218817,6.3673,1603.0,1602.6,6.23986]
[1744549219135,3.0,1602.9,1602.6,6.23986]
[1744549219340,6.11,1603.0,1602.6,1.333393]
[1744549219649,6.11,1603.0,1602.7,0.8539]
[1744549219850,6.11,1603.0,1602.7,7.09317]
[1744549220046,4.17264779,1602.8,1602.7,7.09317]
[1744549220513,4.31499152,1602.8,1602.7,7.09317]
[1744549223130,0.14234373,1602.8,1602.7,7.09317]
[1744549223652,3.0,1603.1,1602.9,6.23866]
[1744549224037,3.0,1603.1,1602.8,12.47779]
[1744549224351,3.0,1603.1,1602.8,6.23887]
[1744549224736,3.0,1603.1,1602.8,12.47781]
[1744549225053,3.0,1603.1,1602.9,6.23857]
[1744549226157,3.0,1603.1,1602.9,12.47709]
[1744549226657,3.0,1603.1,1602.9,13.34339]
[1744549226860,3.0,1603.1,1603.0,6.2383]
[1744549227626,3.0,1603.3,1603.0,12.4766]
[1744549228327,6.11,1603.4,1603.3,6.23713]
[1744549228531,6.11,1603.4,1603.1,6.23773]
[1744549228731,6.3673,1603.4,1603.0,13.39036]
[1744549229055,6.3673,1603.4,1603.0,6.23823]
[1744549229852,6.3673,1603.4,1603.0,6.23814]
[1744549231342,6.3673,1603.4,1603.1,6.23771]
[1744549232768,6.3673,1603.4,1603.1,12.47545]
[1744549232967,6.11,1603.4,1603.2,7.06464]
[1744549233172,9.11,1603.4,1603.3,6.23713]
[1744549233372,6.11,1603.4,1603.3,6.23713]
[1744549234156,10.77294779,1603.7,1603.4,6.23638]
[1744549234351,10.77294779,1603.7,1603.5,6.23632]
[1744549234557,10.51564779,1603.7,1603.5,7.06352]
[1744549234760,6.343,1603.7,1603.5,13.29975]
[1744549235276,3.0,1603.8,1603.5,13.29975]
[1744549235577,3.0,1603.8,1603.6,6.23583]
[1744549235769,3.0,1603.8,1603.5,7.0635]
[1744549236158,3.0,1603.8,1603.6,6.23592]
[1744549236354,10.28264779,1603.9,1603.7,6.23535]
[1744549236681,4.17264779,1603.9,1603.8,7.06239]
[1744549237583,4.17264779,1603.9,1603.8,8.392164]
[1744549238975,4.17264779,1603.9,1603.8,8.420364]
[1744549239365,4.19264779,1604.4,1604.2,6.23357]
[1744549240169,4.19264779,1604.4,1604.2,6.23348]
[1744549240548,4.19264779,1604.4,1604.3,6.23324]
[1744549241892,4.44994779,1604.4,1604.1,7.08929]
[1744549242797,4.44994779,1604.4,1604.1,13.32311]
[1744549243301,0.2773,1604.4,1604.1,13.32311]
[1744549243495,0.02,1604.4,1604.2,6.23361]
[1744549243678,0.02,1604.4,1604.2,12.4671]
[1744549243890,0.02,1604.4,1604.2,6.23349]
[1744549244059,0.02,1604.4,1604.3,6.23324]
[1744549244461,0.02,1604.4,1604.3,7.08214]
[1744549244763,0.02,1604.4,1604.3,9.09936721]
[1744549245190,0.02,1604.4,1604.3,9.037044]
[1744549247305,2.97,1604.8,1604.5,6.23219]
[1744549247455,6.7675063,1604.9,1604.6,0.8585]
[1744549247798,6.5102063,1604.9,1604.7,6.23153]
[1744549248652,6.5102063,1604.9,1604.6,7.09054]
[1744549248883,6.5102063,1604.9,1604.6,0.8585]
[1744549249096,6.5102063,1604.9,1604.6,7.0904]
[1744549249395,6.5102063,1604.9,1604.6,13.3223]
[1744549249694,6.0102063,1604.9,1604.6,13.32229]
[1744549249989,6.0102063,1604.9,1604.6,7.09039]
[1744549250592,0.43877326,1604.8,1604.5,12.46475]
[1744549251988,0.43877326,1604.8,1604.4,6.23277]
[1744549252150,6.48911,1604.7,1604.2,7.09199]
[1744549252351,6.48911,1604.7,1604.2,13.32551]
[1744549252570,0.1853707,1604.6,1604.2,13.32551]
[1744549252894,6.48911,1604.7,1604.2,13.32551]
[1744549253186,0.1853707,1604.5,1604.2,13.32551]
[1744549253358,6.48911,1604.7,1604.2,14.658061]
[1744549253686,3.0,1604.6,1604.1,6.23391]
[1744549253986,0.2573,1604.5,1604.2,6.23363]
[1744549254154,0.2573,1604.5,1604.1,6.23386]
[1744549254588,0.1853707,1604.4,1604.1,6.23386]
[1744549255194,6.4182607,1604.4,1604.0,12.57233]
[1744549255483,0.1853707,1604.4,1604.1,6.23399]
[1744549256094,0.1853707,1604.4,1604.0,6.23433]
[1744549256292,0.2573,1604.3,1603.9,6.23471]
[1744549256492,6.2675063,1604.3,1603.8,7.564884]
[1744549256693,0.18170952,1604.2,1603.9,6.23476]
[1744549257175,0.18170952,1604.2,1603.9,6.23466]
[1744549257797,0.18170952,1604.2,1603.8,7.564904]
[1744549257976,0.2573,1604.1,1603.8,6.23513]
[1744549258479,0.18052819,1604.0,1603.8,6.23513]
[1744549258680,0.18052819,1604.0,1603.8,12.4702]
[1744549259204,0.18052819,1604.0,1603.5,12.56833]
[1744549259205,0.18052819,1604.0,1603.7,6.23542]
[1744549259496,3.2573,1603.9,1603.5,6.2363]
[1744549259708,3.2573,1603.9,1603.6,6.23596]
[1744549260070,0.18052819,1603.8,1603.6,6.23596]
[1744549260602,3.2573,1603.9,1603.6,6.23596]
[1744549260784,0.18052819,1603.7,1603.6,6.23596]
[1744549261102,0.18052819,1603.7,1603.6,7.483046]
[1744549261298,0.2573,1603.9,1603.6,1.247226]
[1744549261606,0.2573,1603.9,1603.7,12.47082]
[1744549261901,0.2573,1603.9,1603.7,6.23538]
[1744549262072,0.2573,1603.9,1603.6,6.2358]
[1744549262903,0.2573,1603.9,1603.6,12.4716]
[1744549264810,0.2573,1603.9,1603.7,6.23552]
[1744549265572,0.1696601,1603.8,1603.7,6.23552]
[1744549265982,3.2573,1604.1,1603.7,7.482652]
[1744549266307,3.2573,1604.1,1603.7,13.718172]
[1744549266603,0.1696601,1604.0,1603.9,6.2348]
[1744549266978,0.4269601,1604.0,1603.7,6.23544]
[1744549267193,0.4269601,1604.0,1603.6,13.37574]
[1744549267505,0.4269601,1604.0,1603.6,12.47165]
[1744549268112,0.4269601,1604.0,1603.7,6.23557]
[1744549268614,4.17264779,1605.1,1604.4,7.15025]
[1744549268799,0.2573,1604.9,1604.5,6.23232]
[1744549269001,0.2573,1604.9,1604.4,0.9174]
[1744549269201,6.23168,1604.8,1604.3,6.23309]
[1744549269404,0.2573,1604.7,1604.4,6.23271]
[1744549269578,0.2573,1604.7,1604.3,12.46615]
[1744549270018,0.2573,1604.7,1604.3,12.46618]
[1744549270517,0.2573,1604.7,1604.3,12.46612]
[1744549271025,0.2573,1604.4,1604.0,12.46866]
[1744549271622,0.2573,1604.4,1604.1,6.23391]
[1744549271822,0.2573,1604.4,1604.2,12.46708]
[1744549272127,0.2573,1604.4,1604.2,6.23345]
[1744549274125,0.2573,1604.4,1604.1,6.234]
[1744549274298,0.2573,1604.4,1604.0,6.23436]
[1744549274495,3.0,1604.3,1603.9,6.23475]
[1744549274701,0.2634,1604.2,1603.8,6.23517]
[1744549274918,0.2634,1604.2,1603.7,6.23545]
[1744549274919,9.23414,1604.1,1603.7,6.23545]
[1744549275127,9.23414,1604.1,1603.7,12.4709]
[1744549275333,3.0,1604.1,1603.7,6.23558]
[1744549275499,3.0,1604.1,1603.9,6.23467]
[1744549276119,0.13920588,1604.0,1603.9,6.23467]
[1744549277428,6.2736063,1604.2,1604.0,6.2341]
[1744549277634,0.13920588,1604.1,1604.0,12.4682]
[1744549278313,0.13920588,1604.1,1604.0,13.3557]
[1744549278508,0.13920588,1604.1,1604.0,14.69127]
[1744549279237,3.0,1604.5,1604.4,6.23285]
[1744549279540,3.14003371,1604.5,1604.4,6.23285]
[1744549279843,3.40343371,1604.5,1604.4,6.23285]
[1744549280048,3.14003371,1604.5,1604.4,6.23285]
[1744549280950,3.14003371,1604.5,1604.3,6.23319]
[1744549281300,0.2634,1604.4,1604.1,6.23383]
[1744549281505,6.49641,1604.4,1604.0,6.23436]
[1744549281753,0.14878348,1604.3,1604.0,6.23436]
[1744549281953,0.14878348,1604.3,1604.0,12.46859]
[1744549282110,6.49641,1604.4,1604.0,12.46859]
[1744549282311,0.14878348,1604.2,1604.0,12.46859]
[1744549282546,6.49641,1604.4,1604.0,12.46859]
[1744549282752,0.14878348,1604.1,1604.0,6.23423]
[1744549282921,6.49641,1604.4,1604.0,6.23423]
[1744549283130,0.14878348,1604.1,1604.0,6.23423]
[1744549283337,6.23326,1604.3,1603.9,12.4695]
[1744549283532,0.14878348,1604.1,1603.9,12.4695]
[1744549283737,6.49641,1604.4,1604.0,12.46867]
[1744549284475,0.2634,1604.4,1604.0,6.23426]
[1744549284638,3.0,1604.4,1604.2,6.23337]
[1744549285164,3.0,1604.4,1604.1,0.8301]
[1744549285165,3.0,1604.5,1604.4,6.23268]
[1744549287365,6.2736063,1604.7,1604.4,12.46542]
[1744549287528,3.0,1604.6,1604.4,6.23268]
[1744549287860,3.0,1604.6,1604.4,12.46536]
[1744549288153,3.0,1604.6,1604.4,12.46542]
[1744549288357,3.0,1604.6,1604.4,6.23283]
[1744549288559,3.0,1604.6,1604.4,6.23273]
[1744549288920,3.0,1604.6,1604.4,6.23271]
[1744549289126,3.0,1604.6,1604.5,6.23247]
[1744549289550,3.0,1604.6,1604.4,12.46545]
[1744549289751,3.0,1604.6,1604.3,6.23316]
[1744549291865,3.0,1604.6,1604.3,12.46626]
[1744549292164,3.0,1604.6,1604.3,6.2331]
[1744549293478,3.0,1604.6,1604.3,6.85641]
[1744549293773,3.0,1604.6,1604.4,6.2328]
[1744549293970,3.0,1604.6,1604.5,6.23247]
[1744549294877,6.0102063,1604.7,1604.5,6.23247]
[1744549295184,0.2634,1604.9,1604.7,6.23153]
[1744549295350,10.18285409,1605.0,1604.7,6.23168]
[1744549295677,3.0,1604.9,1604.6,6.23183]
[1744549295877,3.14689201,1604.9,1604.6,6.23183]
[1744549296089,0.2634,1604.8,1604.5,6.23245]
[1744549296290,0.2634,1604.8,1604.6,6.23197]
[1744549296502,0.14984718,1604.7,1604.6,6.23197]
[1744549296984,22.64416409,1605.0,1604.7,6.2315]
[1744549296985,10.18285409,1605.0,1604.7,6.2315]
[1744549297478,10.18285409,1605.0,1604.8,6.23095]
[1744549298150,10.18285409,1605.0,1604.8,12.46192]
[1744549298562,10.18285409,1605.0,1604.8,6.23095]
[1744549298963,6.0102063,1605.0,1604.8,6.23095]
[1744549299675,6.0102063,1605.0,1604.9,6.23091]
[1744549299881,6.0102063,1605.0,1604.9,7.07201]
[1744549300466,6.0102063,1605.0,1604.8,13.70837]
[1744549300680,6.0102063,1605.0,1604.9,6.23091]
[1744549301313,6.0102063,1605.0,1604.8,7.47721]
[1744549301468,3.0,1605.1,1604.8,6.23095]
[1744549301802,3.0,1605.1,1604.8,12.46214]
[1744549303101,10.40243779,1605.2,1604.8,12.46214]
[1744549303265,12.45972,1605.2,1604.8,6.23095]
[1744549304605,6.22979,1605.2,1604.8,12.4621]
[1744549304807,12.45984,1605.2,1604.8,6.23095]
[1744549305273,6.22979,1605.2,1604.8,12.46213]
[1744549305472,6.22979,1605.2,1604.9,6.23088]
[1744549306273,15.72232,1605.3,1604.9,12.46165]
[1744549306500,15.72232,1605.3,1604.9,12.46156]
[1744549307004,3.0,1605.2,1605.0,6.23036]
[1744549307365,3.0,1605.2,1605.0,12.46072]
[1744549307704,3.0,1605.2,1605.0,6.23036]
[1744549309186,3.0,1605.2,1605.1,6.23014]
[1744549309590,12.3582063,1605.4,1605.1,12.46028]
[1744549309591,3.0,1605.3,1605.1,12.46028]
[1744549310297,0.1558749,1605.2,1605.0,13.171756]
[1744549310511,0.1558749,1605.2,1605.1,6.23014]
[1744549312127,12.3582063,1605.4,1605.1,6.23014]
[1744549312293,0.1558749,1605.2,1605.1,6.23014]
[1744549312619,12.3582063,1605.4,1605.1,13.7774196]
[1744549312821,0.1558749,1605.2,1605.1,13.7774196]
[1744549313027,18.5872663,1605.4,1605.1,7.5471596]
[1744549313198,0.1558749,1605.2,1605.1,6.23002]
[1744549313398,24.8164963,1605.4,1605.1,6.23002]
[1744549313611,0.1558749,1605.2,1605.1,6.23002]
[1744549313798,24.8164963,1605.4,1605.1,6.23002]
[1744549313999,0.1558749,1605.2,1605.1,6.23002]
[1744549314198,18.5872663,1605.4,1605.1,7.5471606]
[1744549314418,0.1558749,1605.2,1605.1,6.23002]
[1744549314621,18.5872663,1605.4,1605.1,6.23002]
[1744549314840,0.1558749,1605.2,1605.1,6.23002]
[1744549314999,12.3582063,1605.4,1605.1,6.23002]
[1744549315330,18.5872963,1605.4,1605.0,6.941406]
[1744549315496,6.6151549,1605.3,1605.0,6.2305]
[1744549315925,6.6151549,1605.3,1604.9,6.2309]
[1744549316134,12.8448649,1605.3,1604.9,6.2309]
[1744549316333,6.6151549,1605.3,1604.9,12.46167]
[1744549316534,6.6151549,1605.3,1605.0,6.23046]
[1744549316707,6.6151549,1605.3,1605.0,12.46083]
[1744549317336,6.6151549,1605.3,1605.0,6.23037]
[1744549319755,6.6151549,1605.3,1605.0,12.46074]
[1744549319928,3.3855749,1605.3,1605.1,6.2301]
[1744549320261,9.3854649,1605.3,1604.9,6.23082]
[1744549320401,9.3854649,1605.3,1604.9,12.46164]
[1744549320601,15.6149849,1605.3,1604.9,12.46164]
[1744549320801,0.2297,1605.2,1604.9,6.23082]
[1744549321141,9.46028,1605.0,1604.6,6.23192]
[1744549321443,9.46028,1605.0,1604.7,6.23147]
[1744549321611,0.15930131,1604.9,1604.8,6.2313]
[1744549322246,0.15930131,1604.9,1604.7,7.704617]
[1744549322398,6.62010131,1604.9,1604.6,6.23203]
[1744549322599,6.62010131,1604.9,1604.5,7.0857]
[1744549322796,0.38900131,1604.9,1604.7,6.23162]
[1744549323031,0.38900131,1604.9,1604.7,12.46324]
[1744549323329,0.15930131,1604.9,1604.8,6.2313]
[1744549324243,0.15930131,1604.9,1604.7,12.46309]
[1744549324618,0.15930131,1604.9,1604.8,6.2313]
[1744549327959,0.15930131,1604.9,1604.7,7.477829]
[1744549328278,0.15930131,1604.9,1604.7,6.23152]
[1744549328439,0.15930131,1604.9,1604.7,12.46304]
[1744549328645,0.2297,1604.8,1604.6,6.23186]
[1744549328847,0.2297,1604.8,1604.5,6.23242]
[1744549329052,0.15882867,1604.7,1604.4,12.46553]
[1744549329227,6.39054867,1604.7,1604.4,13.797343]
[1744549329433,0.15882867,1604.7,1604.4,13.797343]
[1744549330833,6.39059867,1604.7,1604.4,6.23272]
[1744549331267,0.15882867,1604.7,1604.4,12.46545]
[1744549331770,0.15882867,1604.7,1604.5,12.46454]
[1744549332134,0.15882867,1604.7,1604.5,6.23223]
[1744549334035,0.15882867,1604.7,1604.4,12.46549]
[1744549334236,0.15882867,1604.7,1604.5,12.46473]
[1744549334653,0.15882867,1604.7,1604.6,6.23208]
[1744549335037,0.15882867,1604.7,1604.6,7.09878]
[1744549335776,3.0,1604.9,1604.8,6.2313]
[1744549338394,3.0,1604.9,1604.7,6.23151]
[1744549338566,3.0,1604.9,1604.7,12.46303]
[1744549338772,3.0,1604.9,1604.8,6.2313]
[1744549340047,3.0,1604.9,1604.7,6.23151]
[1744549340553,0.15563846,1604.8,1604.7,8.44564123]
[1744549340775,6.0102063,1605.1,1604.9,6.23079]
[1744549341148,6.0102063,1605.1,1604.9,12.46153]
[1744549341944,6.0102063,1605.1,1605.0,6.23052]
[1744549343987,6.0102063,1605.1,1605.0,7.12852]
[1744549344176,6.0102063,1605.1,1605.0,8.464445]
[1744549345903,3.0,1605.3,1605.2,6.22975]
[1744549348314,3.2284,1605.3,1605.0,6.23035]
[1744549348472,9.45805,1605.3,1604.9,6.23083]
[1744549348962,9.45805,1605.3,1605.0,6.23035]
[1744549349726,9.45805,1605.3,1605.0,12.46076]
[1744549350287,9.45805,1605.3,1605.0,6.23035]
[1744549351008,15.68758,1605.3,1605.0,6.23035]
[1744549351191,15.68758,1605.3,1604.9,12.46164]
[1744549351397,15.68758,1605.3,1604.9,6.23082]
[1744549351697,9.22977,1605.2,1604.9,6.23082]
[1744549354785,6.45871,1605.1,1604.8,6.23121]
[1744549355510,6.38032912,1605.0,1604.6,7.13682]
[1744549355712,6.38032912,1605.0,1604.6,8.482602]
[1744549356215,0.2284,1604.9,1604.6,12.46404]
[1744549356385,6.45934,1604.9,1604.6,6.23202]
[1744549356582,12.61279912,1604.8,1604.5,6.23235]
[1744549356929,3.0,1604.6,1604.3,6.23316]
[1744549357229,6.37943187,1604.5,1604.2,6.23354]
[1744549357381,6.37943187,1604.5,1604.2,7.570775]
[1744549357993,12.61208187,1604.5,1604.2,7.570775]
[1744549358199,0.2284,1604.4,1604.2,6.23354]
[1744549358397,0.37169583,1604.4,1604.2,6.23354]
[1744549358629,6.23345,1604.3,1603.9,13.40016]
[1744549358923,0.14246782,1604.3,1604.2,6.23335]
[1744549359323,12.3312063,1604.4,1604.2,12.46684]
[1744549359498,0.14234953,1604.3,1604.2,7.07885]